[Event "45th FIDE Olympiad 2024"]
[Site "Budapest"]
[Date "2024.09.19"]
[Round "8.85"]
[White "Murphy, Conor E"]
[Black "Cheng, Bobby"]
[Result "1/2-1/2"]
[ECO "B51"]
[WhiteElo "2453"]
[BlackElo "2588"]
[Annotator "TA"]
[PlyCount "265"]
[EventDate "2024.09.05"]
[EventType "team-tourn"]
[EventCountry "HUN"]
[SourceTitle "playchess.com"]
[Source "ChessBase"]
[SourceQuality "1"]
[WhiteTeam "Ireland"]
[BlackTeam "Australia"]
[WhiteTeamCountry "IRL"]
[BlackTeamCountry "AUS"]
[TimeControl "40/5400+30:1800+30"]

{[%evp 9,265,0,0,11,8,14,14,0,5,4,0,0,8,9,2,-4,27,-27,-18,-35,-37,-30,-19,-11,-15,-38,-25,-39,-43,-30,-32,-39,-13,-38,-20,-26,-12,-16,-28,-44,-11,-42,-36,-62,-35,-60,-61,-60,-75,-71,-53,-91,-83,-81,-87,-104,-77,-97,-74,-99,-58,-79,-64,-68,-58,-86,-66,-82,0,-83,-64,-72,-78,-69,-16,-12,-26,-25,-17,-66,-60,-77,-28,-45,-6,-6,0,0,0,0,0,-68,-52,-33,-64,-49,-41,-41,-41,-44,-42,-58,-58,-58,-58,-58,-58,-58,-58,-108,-108,-108,-108,-108,-108,-108,-108,-108,-108,-108,-108,-108,-108,-108,-75,-108,-108,-108,-108,-108,-108,-108,-108,-108,-108,-108,-108,-108,-108,-108,-108,-108,0,-108,-108,-108,-108,-108,-108,-108,-108,-108,-108,-108,-108,-108,-108,-108,-108,-108,-108,-108,-108,-108,-108,-108,-108,-108,-108,-108,0,-108,-72,-72,-72,-72,-72,-72,-65,-65,-52,-52,-52,-52,-52,-52,-52,-52,-52,-52,-52,-52,0,-52,0,-52,0,-52,0,-52,-27,-27,-27,-27,-25,-25,-25,-27,-27,-27,-27,-27,-25,-27,-25,-25,-25,-27,-27,-27,-27,-27,-25,-27,-25,-27,-8,-8,-8,-27,-8,-8,-8,-8,-8,-8,-8,-8,-8,-43,-43,-43,-43,-43,-43,-43,-43,-43,-43,-43,-43,-43,-43,-43,-43,-43,-43,-43]} 1. e4 c5 2. Nf3 d6 3. Bb5+ Nd7 4. O-O a6 5. Be2 Ngf6 6. d3 {[%cal Ob2b4]} e6 7. a4 b6 8. Nfd2 {The position is equal.} Nb8 9. f4 Nc6 10. Bf3 {[%cal Oe4e5]} Bb7 11. c3 Be7 12. Qe2 Qc7 13. Nc4 (13. e5 $142 Nd7 14. exd6 Bxd6 15. Nc4) 13... O-O 14. Nxd6 Qxd6 15. e5 Qc7 16. exf6 Bxf6 17. Nd2 Na5 (17... Qxf4 $2 18. Bxc6 $18) 18. Bxb7 Qxb7 19. Ne4 Be7 20. Be3 Qd7 21. Qc2 Rac8 22. Rad1 Qd5 23. Ng3 g6 24. Ne4 Nc6 25. Bc1 Rfd8 26. Nf2 Bf6 27. Ng4 Bg7 28. Ne3 Qd7 29. Nc4 Qc7 30. Qe2 b5 31. axb5 axb5 32. Nd2 Ne7 33. Ne4 Nd5 34. Kh1 Rd7 35. Qf3 Qa7 36. Rfe1 Qb6 37. Qe2 Qc6 38. Qf3 Qb6 39. Qe2 $1 Qc7 {[%cal Ob5b4]} 40. Rf1 Qc6 41. Qf3 Ra7 (41... h6 $15) 42. c4 $1 $11 {[%cal Bc3c4,Bc4b5,Bb5b6][%mdl 32]} Nf6 43. cxb5 $1 (43. Nxf6+ $6 Bxf6 44. Qxc6 Rxc6 45. cxb5 Rb6 $14) 43... Qb7 (43... Qxb5 $6 44. Nd6 Qd7 45. Nxc8 Qxc8 46. Be3 $16) 44. Nd6 (44. Be3 $11) 44... Qxf3 $15 45. Rxf3 Rd8 ({Black should try} 45... Rb8 $17) 46. Nc4 $11 Rb7 47. b6 $1 Nd5 48. Bd2 $1 Ra8 ({But not} 48... Nxb6 $6 49. Nxb6 (49. Ba5 Nxc4 50. Bxd8 Nxb2 $15) 49... Rxb6 50. Ba5 $16) 49. Ba5 (49. Be3 Bd4 (49... Nxb6 50. Bxc5 Na4 51. Bg1 $15) 50. Bxd4 cxd4 $14) 49... Bxb2 50. Rb1 (50. g3 $11) 50... Bc3 $1 $36 {[%mdl 2048] Black is more active.} 51. Bxc3 Nxc3 52. Rc1 {[%cal Og2g3]} Ra4 53. g3 Nd5 54. Kg2 Kg7 (54... Nxb6 {simplifies} 55. Nxb6 Rxb6 56. Rxc5 Rb2+) 55. Rf2 Nxb6 56. Nxb6 Rxb6 57. Rxc5 {[%mdl 4096] Endgame. KRR-KRR} Rb3 58. Rd2 Rd4 {[%cal Oh7h5]} 59. h4 {[#]} (59. Rc7 $15) 59... h5 $1 $17 60. Kf2 Rdxd3 61. Rxd3 Rxd3 {KR-KR} 62. Ra5 Kf6 63. Rb5 Ke7 64. Ra5 Rd5 65. Ra7+ Rd7 66. Ra8 Kd6 67. Ra5 Rc7 68. Kf3 Rc3+ 69. Kf2 Rc5 70. Ra7 Rc7 71. Ra5 Ke7 72. Kf3 Kf6 73. Rb5 Ra7 74. Rb3 Rd7 75. Rb5 Rd3+ 76. Kf2 $1 Rd5 77. Rb7 Rf5 78. Kg2 Kg7 79. Ra7 Rd5 80. Kf3 Kf8 81. Ra6 Ke7 82. Ra7+ Rd7 83. Ra6 Rb7 84. Kf2 Kf6 {...Kf5 is the strong threat.} 85. Ra5 Rb3 86. Ra7 Rb5 87. Kf3 Kg7 88. Kf2 Rc5 89. Kf3 Rf5 90. Kg2 $1 e5 91. fxe5 Rxe5 92. Kf3 Kf6 93. Ra6+ Kf5 94. Ra7 f6 95. Ra4 Rb5 96. Ra3 Ke6 97. Re3+ Re5 {[#] White must now prevent ...Rxe3+.} 98. Ra3 Rf5+ 99. Kg2 Rd5 100. Kf3 Rb5 101. Re3+ $1 Re5 {( -> ...Rxe3+)} 102. Ra3 $1 Rf5+ 103. Kg2 Rd5 104. Kf3 $1 g5 105. hxg5 fxg5 106. Ra2 Rd3+ 107. Kg2 Re3 108. Kf2 Re5 109. Kf3 Rb5 110. Kg2 Kf5 111. Kf3 Rb3+ 112. Kg2 Re3 113. Kf2 Re5 114. Kf3 Rd5 115. Rb2 Rd3+ 116. Kg2 Ke4 117. Kf2 Rf3+ 118. Kg2 {Hoping for Rb4+.} Rc3 119. Kf2 g4 120. Rb4+ Kd3 121. Rb5 Rc2+ 122. Kg1 Ke4 123. Rxh5 Kf3 124. Rf5+ Kxg3 {Black is slightly better.} 125. Rf1 {Repels Rc1} Rg2+ 126. Kh1 Rf2 127. Ra1 Kh3 128. Kg1 Rg2+ (128... Re2 $5) 129. Kh1 Rb2 130. Kg1 g3 131. Rc1 Rg2+ 132. Kh1 Re2 133. Kg1 {Weighted Error Value: White=0.12 (very precise) /Black=0.12 (very precise) .  Mistake:       	White=4     	Black=2      Inaccurate:     	White=6     	Black=8      OK:         	White=34    	Black=34     Best:        	White=10    	Black=4      Strong:       	White=10    	Black=2} 1/2-1/2

[Event "45th FIDE Olympiad 2024"]
[Site "Budapest"]
[Date "2024.09.19"]
[Round "8.85"]
[White "Celis, Joel"]
[Black "Bhakta, Bahadur Monger"]
[Result "1-0"]
[WhiteElo "1929"]
[BlackElo "1911"]
[PlyCount "83"]
[EventDate "2024.09.05"]
[EventType "team-tourn"]
[EventCountry "HUN"]
[WhiteTeam "Macau, China"]
[BlackTeam "Bhutan"]
[BlackTeamCountry "BTN"]
[TimeControl "40/5400+30:1800+30"]

1. e4 c5 2. Nf3 Nc6 3. d4 cxd4 4. Nxd4 Nf6 5. Nc3 e5 6. Ndb5 d6 7. Bg5 a6 8. Na3 b5 9. Nd5 Be7 10. Bxf6 Bxf6 11. c3 Bg5 12. Nc2 Be6 13. a4 b4 14. Ncxb4 Nxb4 15. Nxb4 O-O 16. Bxa6 Rxa6 17. Nxa6 Qa8 18. Qe2 Rc8 19. Nb4 f5 20. Nd5 Bd8 21. f3 Qa7 22. Qc2 Ba5 23. O-O-O fxe4 24. fxe4 h6 25. Rhf1 Kh8 26. Rd3 Qd7 27. Rdf3 Re8 28. h3 Bd8 29. b4 Kh7 30. Kb2 Rg8 31. Ka3 g6 32. Nf6+ Bxf6 33. Rxf6 Rg7 34. Qd3 Bg8 35. Rxd6 Qa7 36. Rd1 Bf7 37. Qd2 Be8 38. a5 Qb7 39. Qd5 Qc7 40. Qc5 Qf7 41. Qxe5 Qc7 42. Re6 1-0

[Event "45th FIDE Olympiad 2024"]
[Site "Budapest"]
[Date "2024.09.19"]
[Round "8.86"]
[White "Sardana, Rishi"]
[Black "Kanyamarala, Tarun"]
[Result "1/2-1/2"]
[ECO "B22"]
[WhiteElo "2477"]
[BlackElo "2361"]
[Annotator "TA"]
[PlyCount "117"]
[EventDate "2024.09.05"]
[EventType "team-tourn"]
[EventCountry "HUN"]
[SourceTitle "playchess.com"]
[Source "ChessBase"]
[SourceQuality "1"]
[WhiteTeam "Australia"]
[BlackTeam "Ireland"]
[WhiteTeamCountry "AUS"]
[BlackTeamCountry "IRL"]
[TimeControl "40/5400+30:1800+30"]

{[%evp 18,117,22,29,30,0,11,5,7,7,18,6,19,8,0,0,7,0,11,13,15,11,17,10,12,0,0,0,0,0,5,6,14,13,11,10,1,0,41,39,54,10,64,52,52,52,52,52,52,52,52,52,64,64,64,43,64,64,64,13,64,64,64,62,62,42,93,93,93,93,93,93,93,0,93,93,93,93,93,93,93,93,93,93,93,93,93,86,93,0,0,0,0,0,0,0,0,0,0,0,0,0]} 1. e4 c5 2. Nf3 e6 3. c3 Nf6 4. e5 Nd5 5. d4 cxd4 6. cxd4 d6 7. Bc4 Be7 8. O-O O-O 9. Qe2 dxe5 10. dxe5 Bd7 11. Bxd5 exd5 12. Rd1 Be6 13. Nc3 Nc6 14. h3 Qd7 15. Be3 f6 16. exf6 Bxf6 17. Ne4 Rae8 {[%cal Oe6h3]} 18. Nc5 {A dynamic duo of knights.} Qf7 19. Nxe6 Rxe6 20. Qc2 {[%cal Oc2c5] Repels d4} (20. Rxd5 $2 Rxe3 21. Qd1 Re7 $19) 20... Re4 21. Rd2 Rfe8 {...d4 is the strong threat.} 22. Qd1 d4 23. Bg5 h6 24. Bxf6 Qxf6 25. Qb3+ Qf7 26. Qxf7+ Kxf7 {[#]} 27. b4 $1 Ne5 (27... Nxb4 28. Nxd4 Rd8 29. Rad1) (27... Rd8 28. Rad1) 28. Nxe5+ (28. Rxd4 $2 {loses.} Nxf3+ 29. gxf3 Rxd4 $19) 28... R8xe5 $14 {[%mdl 4096] Endgame. KRR-KRR} 29. Rad1 a5 ({Better is} 29... Re1+ $11 30. Rxe1 Rxe1+ 31. Kh2 Ke8) 30. bxa5 (30. Rxd4 axb4 31. g3 Rxd4 32. Rxd4 Rb5) 30... Rxa5 31. Rxd4 Rxd4 32. Rxd4 Rxa2 {KR-KR} 33. Rd7+ Kf6 34. Rxb7 Ra1+ 35. Kh2 Ra2 36. Kg3 Ra3+ 37. f3 Rc3 38. Kg4 (38. h4 $14) 38... Rc2 ({Black should play} 38... Rc4+ $1 $11 39. f4 g5) 39. Rb6+ Kf7 40. g3 Rc4+ 41. f4 Ra4 (41... Rc3 $14) 42. Rb5 Kf6 43. h4 {[%cal Bh3h4,Bh4h5][%mdl 32]} Ra3 44. Rb6+ Kf7 {[%cal Oh6h5]} 45. Rb5 Kf6 $1 46. Rf5+ Kg6 {[%cal Oa3g3] [#]} 47. h5+ $1 Kh7 48. Rf8 Rb3 49. Kh4 Ra3 50. Re8 Rf3 51. Re4 Ra3 52. g4 Rb3 53. g5 (53. Re1 $16) 53... hxg5+ $11 {The position is equal.} 54. fxg5 Rb1 55. Re3 Rh1+ 56. Kg4 Rg1+ 57. Kf4 Rh1 58. Kg4 Rg1+ 59. Kf4 {Weighted Error Value: White=0.09 (flawless) /Black=0.07 (flawless) .  Mistake:       	White=2     	Black=3      Inaccurate:     	White=1     	Black=1      OK:         	White=13    	Black=17     Best:        	White=3     	Black=3      Strong:       	White=1     	Black=1} 1/2-1/2

[Event "45th FIDE Olympiad 2024"]
[Site "Budapest"]
[Date "2024.09.19"]
[Round "8.86"]
[White "Mahendra, Gurung"]
[Black "Mak, Tong Kuan"]
[Result "0-1"]
[WhiteElo "1725"]
[BlackElo "1902"]
[PlyCount "100"]
[EventDate "2024.09.05"]
[EventType "team-tourn"]
[EventCountry "HUN"]
[WhiteTeam "Bhutan"]
[BlackTeam "Macau, China"]
[WhiteTeamCountry "BTN"]
[TimeControl "40/5400+30:1800+30"]

1. e4 c6 2. Nf3 d5 3. exd5 cxd5 4. d4 Nc6 5. Bb5 Qa5+ 6. Nc3 Bg4 7. O-O e6 8. Qd3 Bxf3 9. Qxf3 Be7 10. Bf4 Nf6 11. Be5 O-O 12. Bd3 Nxe5 13. dxe5 Nd7 14. Rfe1 g6 15. Qh3 Rfd8 16. f4 Nc5 17. Rf1 Qb6 18. Kh1 Qxb2 19. Ne2 Nxd3 20. Qxd3 Rac8 21. c3 Rd7 22. a4 Qb6 23. h3 Rc4 24. Rf3 Rdc7 25. a5 Qa6 26. Qd2 R7c5 27. Qa2 Bd8 28. Qd2 Rxa5 29. Raf1 Ra2 30. Qd3 Ba5 31. Rg3 Rc6 32. f5 Qxd3 33. Rxd3 Rxe2 34. fxg6 hxg6 35. Rdf3 Rc7 36. Rd3 Rxe5 37. g4 Bxc3 38. Rc1 Re1+ 39. Rxe1 Bxe1 40. Kg2 b5 41. Kf3 b4 42. Kf4 Bc3 43. h4 b3 44. Rd1 a5 45. h5 a4 46. hxg6 fxg6 47. Kg5 Kg7 48. Rb1 Bd2+ 49. Kh4 Bc1 50. g5 b2 {0-} 0-1

[Event "45th FIDE Olympiad 2024"]
[Site "Budapest"]
[Date "2024.09.19"]
[Round "8.87"]
[White "O'Gorman, Tom"]
[Black "Zhao, Zong-Yuan"]
[Result "1/2-1/2"]
[ECO "D02"]
[WhiteElo "2353"]
[BlackElo "2478"]
[Annotator "TA"]
[PlyCount "84"]
[EventDate "2024.09.05"]
[EventType "team-tourn"]
[EventCountry "HUN"]
[SourceTitle "playchess.com"]
[Source "ChessBase"]
[SourceQuality "1"]
[WhiteTeam "Ireland"]
[BlackTeam "Australia"]
[WhiteTeamCountry "IRL"]
[BlackTeamCountry "AUS"]
[TimeControl "40/5400+30:1800+30"]

{[%evp 15,84,21,26,24,32,0,10,5,12,14,12,17,21,26,17,23,20,-6,0,-52,-60,-52,-53,-88,-6,-16,31,-14,-19,0,-2,-18,-7,-6,-4,-14,0,0,0,0,0,0,0,0,0,0,0,-25,0,-848,0,-33,0,-822,0,-33,0,0,0,0,0,0,0,0,0,-8,-8,-8,-8,-8,0]} 1. d4 d5 2. c4 e6 3. Nc3 Nf6 4. Nf3 Be7 5. Bf4 O-O 6. e3 b6 7. Bd3 Bb7 8. O-O Nbd7 9. cxd5 exd5 10. Nb5 c5 11. Nd6 Bxd6 12. Bxd6 Re8 13. b3 Ne4 14. Bf4 Nf8 15. dxc5 bxc5 16. h3 Ng6 (16... Nc3 {keeps more tension.} 17. Qd2 d4 18. Ne5 Qd5) 17. Bh2 (17. Bxe4 $11 dxe4 18. Nh2 (18. Qxd8 Raxd8 19. Nh2 Nxf4 $15)) 17... Nc3 $15 18. Qc2 d4 {White must now prevent ...Bxf3.} 19. Nd2 Nh4 {Excellent horsemanship.} (19... dxe3 $17 {[%cal Od8g5] Hoping for ...Qg5!} 20. Qxc3 exd2 (20... Qg5 21. Ne4 $11)) 20. e4 $11 {[#]} f5 21. Rae1 Qg5 {[%csl Gh4][%cal Rg5g2]} 22. Bg3 Nxg2 23. Kxg2 f4 $1 {[%cal Oa8d8]} 24. Nb1 Nxb1 25. Qxb1 (25. Rxb1 {seems wilder.} h5 26. h4 Qg4 27. Rfe1) 25... fxg3 26. fxg3 Re5 27. Rf4 h5 28. Qc1 Rae8 29. Kh2 Kh7 30. Qd1 Qg6 {[%cal Ob7a6]} 31. Qf3 R8e7 32. Rf5 $2 {[%mdl 8192] [#]} (32. Qf1 $11) 32... Qh6 $2 (32... Qxf5 $1 $19 33. Qxf5+ Rxf5) 33. Rf4 Qg6 $2 {[%mdl 8192]} (33... Ba6 $15) 34. Rf5 $19 Qh6 $2 (34... Qxf5 $1 $19 35. Qxf5+ Rxf5) 35. Rf8 h4 36. Rf4 {The position is equal.} hxg3+ 37. Qxg3 g5 {Prevents Rh4.} 38. Rf5 Rxf5 39. exf5 Rxe1 40. Qxe1 Qd6+ 41. Qg3 Qxg3+ 42. Kxg3 Kg7 {Weighted Error Value: White=0.30/Black=0.33.  Loses game:     	White=1     	---        Missed win:     	---       	Black=2      Mistake:       	White=1     	Black=2      Inaccurate:     	White=4     	---        OK:         	White=10    	Black=13     Best:        	White=3     	Black=1      Strong:       	---       	Black=1} 1/2-1/2

[Event "45th FIDE Olympiad 2024"]
[Site "Budapest"]
[Date "2024.09.19"]
[Round "8.87"]
[White "Wong, Kai Meng"]
[Black "Suk, Raj Monger"]
[Result "1-0"]
[WhiteElo "1795"]
[BlackElo "1821"]
[Annotator "COMBH"]
[PlyCount "61"]
[EventDate "2024.09.05"]
[EventType "team-tourn"]
[EventCountry "HUN"]
[WhiteTeam "Macau, China"]
[BlackTeam "Bhutan"]
[BlackTeamCountry "BTN"]
[TimeControl "40/5400+30:1800+30"]

1. d4 c5 2. e3 Nf6 3. c4 cxd4 4. exd4 d5 5. Nc3 e6 6. Bg5 Be7 7. Nf3 Nc6 8. Bd3 Qb6 9. cxd5 Nxd5 10. Nxd5 Qa5+ 11. Qd2 Qxd5 12. Bxe7 Kxe7 13. O-O h6 14. Rfe1 Rd8 15. Be4 Qd6 16. Bxc6 bxc6 17. Rac1 Bb7 18. Qc2 Kf8 19. Qh7 f6 20. Re4 Qe7 21. Rce1 Rd6 22. Nh4 Qd7 23. Ng6+ Kf7 24. Rf4 Rd5 25. Ne5+ Rxe5 26. dxe5 f5 27. Rxf5+ exf5 28. e6+ Qxe6 29. Rxe6 Kxe6 30. Qg6+ Kd5 31. Qf7+ 1-0

[Event "45th FIDE Olympiad 2024"]
[Site "Budapest"]
[Date "2024.09.19"]
[Round "8.88"]
[White "Smerdon, David C"]
[Black "Fitzsimons, David"]
[Result "1/2-1/2"]
[ECO "B22"]
[WhiteElo "2475"]
[BlackElo "2315"]
[Annotator "RC"]
[PlyCount "116"]
[EventDate "2024.09.05"]
[EventType "team-tourn"]
[EventCountry "HUN"]
[SourceTitle "playchess.com"]
[Source "ChessBase"]
[SourceQuality "1"]
[WhiteTeam "Australia"]
[BlackTeam "Ireland"]
[WhiteTeamCountry "AUS"]
[BlackTeamCountry "IRL"]
[TimeControl "40/5400+30:1800+30"]

1. e4 c5 2. c3 d5 3. exd5 Qxd5 4. d4 cxd4 5. cxd4 e5 6. Nf3 exd4 7. Qxd4 Nf6 8. Nc3 Qe6+ 9. Be3 Nc6 10. Qa4 Bb4 11. Bb5 O-O 12. O-O Bxc3 13. bxc3 Bd7 14. Rfe1 a6 15. Bf1 Ne5 16. Qf4 Nxf3+ 17. Qxf3 Bc6 18. Qg3 Qg4 19. Bd4 Qxg3 20. hxg3 Rfe8 21. f3 Rac8 22. Kf2 Rxe1 23. Kxe1 h5 24. Kd2 Ne8 25. Bd3 Rd8 26. Re1 Nd6 27. Rh1 Bd5 28. a4 Bb3 29. Rxh5 Bxa4 30. Rg5 Ne8 31. Be4 Rd7 32. g4 Bb3 33. f4 f6 34. Rc5 Nd6 35. Bd3 Ba4 36. g5 b6 37. Rc4 Bb5 38. Rb4 fxg5 39. fxg5 Bxd3 40. Kxd3 b5 41. Rb1 Nf7 42. g6 Ne5+ 43. Ke4 Nxg6 44. c4 Re7+ 45. Kf5 Nh4+ 46. Kg5 bxc4 47. Rb6 a5 48. g4 Ng2 49. Rc6 Kf7 50. Rxc4 Ne3 51. Bxe3 Rxe3 52. Rc5 a4 53. Ra5 a3 54. Ra7+ Kf8 55. Kg6 Re6+ 56. Kg5 Re3 57. Kg6 Re6+ 58. Kg5 Re3 1/2-1/2

[Event "45th FIDE Olympiad 2024"]
[Site "Budapest"]
[Date "2024.09.19"]
[Round "8.89"]
[White "Ziska, Helgi Dam"]
[Black "Pelletier, Yannick"]
[Result "1/2-1/2"]
[ECO "C07"]
[WhiteElo "2553"]
[BlackElo "2526"]
[Annotator "TA"]
[PlyCount "63"]
[EventDate "2024.09.05"]
[EventType "team-tourn"]
[EventCountry "HUN"]
[SourceTitle "playchess.com"]
[Source "ChessBase"]
[SourceQuality "1"]
[WhiteTeam "Faroe Islands"]
[BlackTeam "Switzerland"]
[WhiteTeamCountry "FAI"]
[BlackTeamCountry "SUI"]
[TimeControl "40/5400+30:1800+30"]

{[%evp 11,63,0,22,6,19,5,18,4,12,0,0,4,11,16,29,0,0,-1,-6,-13,-10,-18,0,-15,0,0,-4,-18,-20,-33,0,0,0,0,0,-39,-33,-28,-24,-47,0,0,0,-40,-41,-31,-38,-35,0,-22,0,-31,0,-28]} 1. e4 e6 2. d4 d5 3. Nd2 c5 4. Ngf3 cxd4 5. Nxd4 Nf6 6. exd5 Nxd5 7. N2f3 Bb4+ 8. Bd2 Bc5 9. c3 O-O {[%cal Oe6e5]} 10. Bc4 Nc6 11. Nxc6 bxc6 12. O-O Qb6 13. b4 Be7 14. Bd3 Ba6 15. c4 {[%cal Ob4b5] [#] Threatens to win with b5!} (15. Bxa6 {simplifies} Qxa6 16. Rc1 Rab8 17. a3) 15... Nxb4 16. Rb1 $1 {Black must now prevent Bxb4.} Nxd3 17. Rxb6 axb6 18. Qc2 Rfd8 19. Be3 c5 20. a3 Bb7 21. Qb3 Bxf3 22. gxf3 {[%cal Of1d1]} Ne5 23. f4 Nf3+ 24. Kg2 Nh4+ 25. Kg1 Nf3+ 26. Kg2 $1 Nh4+ 27. Kg1 {White is weak on the light squares} Rd6 28. a4 Nf3+ 29. Kg2 Nh4+ 30. Kg1 Nf3+ 31. Kg2 Nh4+ 32. Kg1 {Weighted Error Value: White=0.07 (flawless) /Black=0.10 (very precise) .  Inaccurate:     	White=2     	Black=1      OK:         	White=11    	Black=13     Best:        	White=2     	---        Strong:       	White=2     	---} 1/2-1/2

[Event "45th FIDE Olympiad 2024"]
[Site "Budapest"]
[Date "2024.09.19"]
[Round "8.90"]
[White "Peng, Li Min"]
[Black "Nielsen, Hogni Egilstoft"]
[Result "1/2-1/2"]
[ECO "E18"]
[WhiteElo "2514"]
[BlackElo "2379"]
[Annotator "TA"]
[PlyCount "63"]
[EventDate "2024.09.05"]
[EventType "team-tourn"]
[EventCountry "HUN"]
[SourceTitle "playchess.com"]
[Source "ChessBase"]
[SourceQuality "1"]
[WhiteTeam "Switzerland"]
[BlackTeam "Faroe Islands"]
[WhiteTeamCountry "SUI"]
[BlackTeamCountry "FAI"]
[TimeControl "40/5400+30:1800+30"]

{[%evp 21,63,41,83,86,92,83,92,54,36,22,110,95,87,105,141,41,45,43,68,6,74,35,33,39,35,34,37,26,51,53,101,80,102,41,58,0,0,0,0,-61,-47,-27,-61,-160]} 1. d4 Nf6 2. c4 e6 3. g3 d5 4. Nf3 Be7 5. Bg2 O-O 6. Nc3 b6 7. cxd5 exd5 8. O-O Bb7 9. Bf4 a6 10. Rc1 Nbd7 11. Ne5 c5 12. Nxd7 Qxd7 13. Na4 Qb5 14. b3 {White is better.} Rac8 15. Bh3 c4 16. Bxc8 Rxc8 17. Rb1 {aiming for bxc4.} Qc6 {[#]} 18. b4 (18. bxc4 $1 $16 dxc4 19. e4) 18... Re8 19. Nc3 b5 20. a3 (20. Bg5 $1 $14) 20... Qe6 (20... Ne4 $11 {keeps the balance.} 21. Nxe4 dxe4) 21. f3 Nh5 {Hoping for ...Nxf4.} 22. Bc1 Qg6 {[%cal Oh5g3] Strongly threatening ...Nxg3!} 23. Rf2 Bd6 24. Rg2 Bc8 25. g4 $1 Nf6 {[#]} (25... Nf4 $1 $14 26. Bxf4 Bxf4) 26. Rb2 $1 $16 Bb7 27. Bd2 (27. Qc2 $16) 27... Nd7 $14 28. a4 (28. e3 $14) 28... Bc6 $11 29. axb5 axb5 30. Qa1 (30. f4 $11) 30... Qf6 $15 31. e3 Qxf3 {...Rxe3 would now be deadly.} 32. Rb1 {Weighted Error Value: White=0.23 (precise) /Black=0.23 (precise) .  Mistake:       	White=6     	Black=3      Inaccurate:     	White=2     	Black=1      OK:         	White=3     	Black=7      Best:        	White=1     	---        Strong:       	White=2     	---} ({White should try} 32. Qa6 $1 $15 Nb8 (32... Re6 33. Rb1 $15) 33. Qb6) 1/2-1/2

[Event "45th FIDE Olympiad 2024"]
[Site "Budapest"]
[Date "2024.09.19"]
[Round "8.91"]
[White "Egilstoft, Rogvi"]
[Black "Georgiadis, Nico"]
[Result "0-1"]
[ECO "B22"]
[WhiteElo "2278"]
[BlackElo "2510"]
[Annotator "TA"]
[PlyCount "86"]
[EventDate "2024.09.05"]
[EventType "team-tourn"]
[EventCountry "HUN"]
[SourceTitle "playchess.com"]
[Source "ChessBase"]
[SourceQuality "1"]
[WhiteTeam "Faroe Islands"]
[BlackTeam "Switzerland"]
[WhiteTeamCountry "FAI"]
[BlackTeamCountry "SUI"]
[TimeControl "40/5400+30:1800+30"]

{[%evp 9,86,0,14,0,6,0,5,0,10,7,3,6,0,0,12,16,20,20,24,28,29,24,28,25,33,41,29,29,33,28,29,8,16,11,31,20,18,-20,-15,-17,-19,-239,-235,-235,-239,-239,-241,-227,-229,-326,-344,-337,-334,-311,-293,-356,-313,-328,-316,-450,-305,-441,-383,-496,-483,-593,-659,-612,-621,-678,-600,-2442,-2629,-29993,-29994,-29994,-29995,-29995,-29995]} 1. e4 c5 2. c3 d5 3. exd5 Nf6 4. d4 Nxd5 5. Nf3 cxd4 6. Bc4 e6 7. Nxd4 Bc5 8. O-O {The position is equal.} O-O 9. Qf3 Nb6 10. Bd3 {[%cal Od3h7]} Bxd4 11. cxd4 Nc6 12. Rd1 f5 {[%cal Od8f6]} 13. Nc3 Nxd4 14. Qg3 {[%cal Od3c2] aiming for Bc2!} Qf6 15. Bg5 Qf7 16. Be3 {A strong pair of Bishops.} Nc6 17. Bc5 Rd8 18. Bxb6 axb6 19. Bc4 Bd7 {[%cal Bc8d7,Bd7e8,Be8f7][%mdl 32]} 20. Qc7 Be8 21. Qxb6 {Threatening Re1.} Qe7 22. Re1 Bf7 23. Nd5 Qh4 24. Ne3 {[%cal Oa1d1]} f4 25. Nf5 {This move loses the game for White.} Qf6 $19 (25... exf5 26. Bxf7+ Kxf7 27. Qxb7+ Ne7 28. a4) 26. Qxb7 {[#]} Na5 27. Ne7+ Kh8 28. Qb4 Nxc4 29. Nc6 (29. Qxc4 $142 Qxe7 30. Qxf4) 29... Rdc8 ({Resist} 29... Nxb2 30. Nxd8 Rxd8 31. Qb6 $19) 30. Qxc4 e5 ({Inferior is} 30... Qxb2 31. Qe4 $14 (31. Qxf4 Qf6 $17)) 31. Qe4 Rxc6 32. Rac1 Rac8 33. Rxc6 Rxc6 34. a4 (34. f3 {is a better defense.}) 34... h6 35. a5 (35. h3 {keeps fighting.}) 35... Rc4 36. Qa8+ Kh7 {[%cal Oe5e4] [#] Hoping for ...e4!} 37. b3 Rd4 38. Qc8 Bxb3 39. a6 Bd5 {And now ...Qg6 would win.} 40. a7 Qg6 {[%csl Gd5][%cal Rg6g2]} 41. g3 fxg3 {Black mates.} 42. fxg3 Rd2 43. Qd8 Qd3 {Weighted Error Value: White=0.59/Black=0.07 (flawless) .  Loses game:     	White=1     	---        Mistake:       	White=3     	---        Inaccurate:     	White=1     	Black=1      OK:         	White=13    	Black=23     Best:        	White=1     	Black=1} 0-1